Cogmind - Beta 15 @@@ ROGUE MODE // 2025.08.22 @ 00:18:36 Player: SadBl0ckBoy Result: Destroyed by G-34 Mercenary with Small Laser Performance ------------- Evolutions (1) 500 Regions Visited (3) 600 Robots Destroyed (45) 225 Value Destroyed (831) 831 Prototype IDs (2) 40 Alien Tech Used (0) 0 Bonus (0) 0 TOTAL SCORE: 2196 Bonus ------- None Cogmind --------- Core Integrity 0/400 Matter 86/300 Energy 100/100 System Corruption 0% Temperature Cool (6) Movement Core (350) Ox6 Location -9/Storage Parts ------- > --- POWER (1) -------- (None) > --- PROPULSION (2) --- (None) > --- UTILITY (4) ------ Large Storage Unit Propulsion Shielding > --- WEAPON (2) ------- (None) > --- INVENTORY (15) --- Improved Ion Engine Wheel Wheel Wheel Wheel Weight Redist. System Improved Terrain Scanner Light Armor Plating Hardened Light Armor Plating Hardened Light Armor Plating Hardened Light Armor Plating Hardened Light Armor Plating Small Laser Small Laser Heavy Assault Rifle Peak State ------------ > --- POWER ------------ Improved Ion Engine > --- PROPULSION ------- Wheel Wheel > --- UTILITY ---------- Heat Sink Large Storage Unit Hardened Light Armor Plating Hardened Light Armor Plating > --- WEAPON ----------- Improved Assault Rifle Mini Grenade Launcher > --- INVENTORY -------- Improved Terrain Scanner Propulsion Shielding Light Armor Plating Light Armor Plating Hardened Light Armor Plating Hardened Light Armor Plating Hardened Light Armor Plating Small Laser Small Laser Grenade Launcher [Rating: 16] Favorites ----------- Power Ion Engine Engine Ion Engine Propulsion Light Treads Treads Light Treads Wheel Wheel Hover Unit Improved Hover Unit Utility Large Storage Unit Device Heat Sink Storage Large Storage Unit Protection Hardened Light Armor Plating Weapon Small Laser Energy Gun Small Laser Ballistic Gun Light Assault Rifle Ballistic Cannon Light Cannon Launcher Mini Grenade Launcher Build | -11 -10 -9 -9 ------- Run | Yrd Mat Mat Sto Slots Evolved 2 | . . 2 . Power . | . . . . Propulsion . | . . . . Utility 2 | . . 2 . Weapon . | . . . . Parts Attached 38 | 7 13 15 3 Power 6 | 1 2 3 . Engine 6 | 1 2 3 . Core . | . . . . Reactor . | . . . . Propulsion 10 | 2 2 4 2 Treads 4 | 2 . 2 . Leg . | . . . . Wheel 4 | . 2 2 . Hover 2 | . . . 2 Flight . | . . . . Utility 10 | 2 4 4 . Device 2 | 1 . 1 . Storage 2 | 1 1 . . Processor . | . . . . Hackware . | . . . . Protection 6 | . 3 3 . Artifact . | . . . . Weapon 12 | 2 5 4 1 Energy Gun 3 | 1 2 . . Energy Cannon . | . . . . Ballistic Gun 4 | 1 1 2 . Ballistic Cannon 1 | . 1 . . Launcher 4 | . 1 2 1 Special Weapon . | . . . . Impact Weapon . | . . . . Slashing Weapon . | . . . . Piercing Weapon . | . . . . Special Melee Weapon . | . . . . Unidentified Prototypes 2 | . . 2 . Parts Lost 12 | . 2 3 7 Power 2 | . . 1 1 Propulsion 3 | . . 1 2 Utility 3 | . . 1 2 Weapon 4 | . 2 . 2 Highest Loss Streak 7 | . 2 1 7 To Critical Strikes . | . . . . Average Backups 7 | . 4 11 14 Power . | . . . 1 Propulsion . | . . 1 3 Utility 5 | . 4 6 6 Weapon 1 | . . 2 3 Tool/Special . | . . . . Unused Backups 7 | . . . 7 Power . | . . . . Propulsion 3 | . . . 3 Utility 4 | . . . 4 Weapon . | . . . . Tool/Special . | . . . . Average Slot Usage (%) 94 | . 94 94 90 Engine 12 | . 14 9 10 Treads 16 | . 24 7 . Wheel 5 | . . 13 6 Device 6 | . 2 10 11 Storage 12 | . 14 11 11 Protection 15 | . 11 19 19 Energy Gun 6 | . 4 9 6 Ballistic Gun 7 | . 11 2 . Ballistic Cannon 2 | . 3 . . Launcher 7 | . 5 10 12 Peak Build Rating 16 | 9 9 16 15 Average Rating 9 | 5 7 13 12 On Entrance 7 | . 9 9 12 Naked Turns . | . . . . Heaviest Build 42 | 14 34 42 36 Greatest Support 40 | 40 40 40 20 Greatest Overweight (x) 4 | . 1 4 4 Average Overweight (x) . | . . . 1 Largest Inventory Capacity 15 | 8 15 15 15 Average Capacity 14 | 7 14 15 15 Most Carried 15 | 5 10 15 15 Average Carried 7 | . 4 11 14 Final Capacity 15 | 8 15 15 15 Final Carried 15 | . 8 13 15 Class Distribution -------------------- 70% | Mutant 29% | Scavenger-Mutant Dominant Class ---------------- Mutant | -10/Materials Scavenger-Mutant | -9/Materials Mutant | -9/Storage Resources | -11 -10 -9 -9 ----------- Run | Yrd Mat Mat Sto Matter Collected 802 | 275 129 398 . Remotely . | . . . . Salvage Created 904 | 118 226 560 . Parts 79 | 7 21 51 . Haulers Intercepted 3 | . 1 2 . Recyclers Shooed 2 | 1 1 . . Parts Field Recycled . | . . . . Retrieved Matter . | . . . . Parts Self-Destructed . | . . . . Prevented . | . . . . Kills | -11 -10 -9 -9 ------- Run | Yrd Mat Mat Sto Combat Hostiles Destroyed 19 | . 8 11 . Guns 5 | . 4 1 . AOE 14 | . 4 10 . Classes Destroyed 9 | 2 6 1 . Worker 6 | . 2 4 . Builder 9 | . 2 7 . Tunneler 2 | 2 . . . Hauler 3 | . 1 2 . Recycler 3 | 1 1 1 . Watcher 3 | . 2 1 . Swarmer 5 | . 5 . . Grunt 9 | . 3 6 . Sentry 5 | . . 5 . Best Kill Streak 9 | 2 9 9 . Combat Bots Only 5 | . 5 5 . Max Kills in Single Turn 4 | 1 4 3 . Gunslinging . | . . . . Exploded 2 | . 2 2 . Melee . | . . . . Uniques/NPCs Destroyed . | . . . . Combat | -11 -10 -9 -9 -------- Run | Yrd Mat Mat Sto Hostile Shots Fired 234 | . 70 84 80 Missed 66 | . 19 24 23 Hits 168 | . 51 60 57 Projectile 168 | . 51 60 57 AOE 2 | . . 2 . Critical Strikes 3 | . . 2 1 Actively Blocked 1 | . . . 1 Damage Taken 2281 | . 581 1044 656 Core 514 | . 105 159 250 Absorbed by Shields . | . . . . Redirected to Shielding 57 | . 31 . 26 Regen/Repaired (Parts) 282 | . . 282 . Core Remaining (%) 79 | 100 58 . . Volleys Fired 105 | 5 43 56 1 Largest 2 | 2 2 2 2 Hottest 80 | 60 80 80 60 Shots Fired 143 | 10 57 74 2 Gun 97 | 10 36 51 . Cannon 10 | . 10 . . Launcher 36 | . 11 23 2 Special . | . . . . Kinetic 54 | 5 40 9 . Thermal 48 | . 6 42 . Explosive 36 | . 11 23 2 Electromagnetic 5 | 5 . . . Robot Hit Streak 8 | 2 7 8 . Robot Miss Streak 5 | 2 5 5 . Penetration Max . | . . . . Secondary Targets . | . . . . Shots Hit Robots 71 | 4 26 41 . Core Hits 68 | 4 24 38 2 Critical Kills . | . . . . Critical Parts Destroyed 1 | . 1 . . Critical Strikes 1 | . 1 . . Destroy 1 | . 1 . . Melee Attacks . | . . . . Impact . | . . . . Slashing . | . . . . Piercing . | . . . . Sneak Attacks . | . . . . Combat Hostiles . | . . . . Follow-up Attacks . | . . . . Damage Inflicted 2878 | 62 1213 1487 116 Guns 641 | 62 179 400 . Cannons 121 | . 121 . . Explosions 2078 | . 909 1081 88 Melee . | . . . . Ramming 38 | . 4 6 28 Kinetic 401 | 10 277 114 . Thermal 410 | . 102 308 . Explosive 1977 | . 830 1059 88 Electromagnetic 52 | 52 . . . Impact . | . . . . Slashing . | . . . . Piercing . | . . . . Highest Corruption . | . . . . Average Corruption . | . . . . Corruption Purged . | . . . . Corruption Blocked . | . . . . Overload Shots . | . . . . Overflow Damage 119 | . 93 26 . Projectiles . | . . . . Explosions 119 | . 93 26 . Melee . | . . . . Knockbacks 4 | . 4 . . Impact . | . . . . Kinetic 4 | . 4 . . Secondary . | . . . . Self-Inflicted Damage 170 | . 98 61 11 Shots 5 | . 3 2 . Rammed 16 | . 1 2 13 Targets Rammed 16 | . 1 2 13 Kicked . | . . . . Crushed . | . . . . Highest Temperature 401 | 40 129 401 . Average Temperature 55 | 17 55 64 . Received Heat Transfer 777 | . 132 309 336 Effects 1 | . . 1 . Energy Bleed 1 | . . 1 . Siege Activations . | . . . . Martial Activations . | . . . . Shielding Activations . | . . . . Robots Disrupted . | . . . . Combat Hostiles . | . . . . Robots Corrupted . | . . . . Combat Hostiles . | . . . . Parts Fried . | . . . . Impact Corruptions . | . . . . Robots Melted . | . . . . Combat Hostiles . | . . . . Parts Melted . | . . . . Heat Transferred 850 | . 150 700 . Parts Sabotaged . | . . . . Parts Stolen . | . . . . Parts Stripped . | . . . . Power Chain Reactions . | . . . . Alert | -11 -10 -9 -9 ------- Run | Yrd Mat Mat Sto Maximum Alert Level 1 | . 1 1 . Low Security (%) 75 | 100 85 52 100 Level 1 24 | . 14 47 . Level 2 . | . . . . Level 3 . | . . . . Level 4 . | . . . . Level 5 . | . . . . High Security . | . . . . Max Security . | . . . . Peak Influence 259 | 10 259 250 86 Initial 86 | . 3 45 86 Average 123 | 2 100 181 62 Influence Increases 984 | 15 425 524 20 Destroy 0b10 Robot/C 380 | . 160 220 . Destroy 0b10 Robot/NC 130 | 15 40 75 . Destroy Leader 112 | . 36 76 . Successful Hack 13 | . . 13 . Disable Machine 150 | . 105 30 15 Destroy Structure 199 | . 84 110 5 Influence Decreases 984 | 10 322 427 225 Entered New Map 184 | . 2 63 119 Time Decay 694 | 10 300 334 50 Lost Part 106 | . 20 30 56 Squads Dispatched 4 | . 1 2 1 Investigation 1 | . . 1 . Extermination . | . . . . Reinforcement 3 | . 1 1 1 Assault . | . . . . Garrison . | . . . . Intercept . | . . . . Searches Triggered . | . . . . Construction Impeded . | . . . . Haulers Reinforced . | . . . . Active Scanning Responses . | . . . . Cargo Convoy Interrupts . | . . . . Stealth | -11 -10 -9 -9 --------- Run | Yrd Mat Mat Sto Distress Signals 4 | . 1 1 2 Communications Jammed . | . . . . Distress Signals . | . . . . Times Spotted 42 | . 17 16 9 Peak Tracking Total 6 | . 5 5 6 Tactical Retreats . | . . . . Traps | -11 -10 -9 -9 ------- Run | Yrd Mat Mat Sto Traps Triggered 1 | . 1 . . Indirectly . | . . . . Trap Hack Attempts . | . . . . Triggered . | . . . . Disarmed . | . . . . Reprogrammed . | . . . . Reused . | . . . . Traps Extracted . | . . . . Installed . | . . . . Triggered . | . . . . Machines | -11 -10 -9 -9 ---------- Run | Yrd Mat Mat Sto Machines Disabled 10 | . 7 2 1 Max in Single Turn 5 | . 5 1 1 Machines Repaired . | . . . . Machines Dismantled . | . . . . Machines Sabotaged . | . . . . Overloaded Fab Kills . | . . . . Hacking | -11 -10 -9 -9 --------- Run | Yrd Mat Mat Sto Machines Accessed 1 | . . 1 . Terminals . | . . . . Fabricators . | . . . . Repair Stations 1 | . . 1 . Recycling Units . | . . . . Scanalyzers . | . . . . Garrison Access . | . . . . Total Hacks 13 | . . 13 . Successful 10 | . . 10 . Failed 3 | . . 3 . Catastrophic . | . . . . Database Lockouts . | . . . . Manual . | . . . . Terminals . | . . . . Fabricators . | . . . . Repair Stations 13 | . . 13 . Recycling Units . | . . . . Scanalyzers . | . . . . Garrison Access . | . . . . Terminal Hacks . | . . . . Fabricator Hacks . | . . . . Repair Station Hacks 10 | . . 10 . Scan Component 5 | . . 5 . Repair 5 | . . 5 . Recycling Unit Hacks . | . . . . Scanalyzer . | . . . . Garrison Access Hacks . | . . . . Unauthorized Hacks . | . . . . Terminals . | . . . . Fabricators . | . . . . Repair Stations . | . . . . Recycling Units . | . . . . Scanalyzers . | . . . . Garrison Access . | . . . . Data Cores Recovered . | . . . . Used . | . . . . Hacking Detections 1 | . . 1 . Full Trace Events 1 | . . 1 . Feedback Events . | . . . . Feedback Blocked . | . . . . Robot Schematics Acquired . | . . . . Robots Built . | . . . . Authchips . | . . . . Time . | . . . . Total Robot Build Rating . | . . . . Part Schematics Acquired . | . . . . Parts Built . | . . . . Authchips . | . . . . Time . | . . . . Total Part Build Rating . | . . . . Parts Repaired 5 | . . 5 . Time 142 | . . 142 . Parts Recycled . | . . . . Recycled Matter . | . . . . Retrieved Matter . | . . . . Retrieved Components . | . . . . Parts Scanalyzed . | . . . . Part Schematics Acquired . | . . . . Parts Damaged . | . . . . Bothacking | -11 -10 -9 -9 ------------ Run | Yrd Mat Mat Sto Used RIF Installer . | . . . . Robots Hacked . | . . . . Non-combat . | . . . . Combat . | . . . . Robot Hacks Applied . | . . . . Relay Couplers Released . | . . . . Fabnet Peak Effective % . | . . . . Robots Rewired . | . . . . Allies Hacked . | . . . . Hacks Repelled . | . . . . Allies | -11 -10 -9 -9 -------- Run | Yrd Mat Mat Sto Total Allies . | . . . . Largest Group . | . . . . Highest-Rated Group . | . . . . Highest-Rated Ally . | . . . . Total Orders . | . . . . Ally Attacks . | . . . . Total Damage . | . . . . Kills . | . . . . Allies Corrupted . | . . . . Allies Melted . | . . . . Intel | -11 -10 -9 -9 ------- Run | Yrd Mat Mat Sto Active Infowar (turns) 219 | 16 203 . . Terrain 219 | 16 203 . . Robot Analysis Total . | . . . . Derelict Logs Recovered . | . . . . Drone Launches . | . . . . Drone Recoveries . | . . . . Exploration | -11 -10 -9 -9 ------------- Run | Yrd Mat Mat Sto Turns Passed 2085 | 90 1120 753 122 Spaces Moved 1031 | 48 580 351 52 Core 14 | 14 . . . Treads 701 | 34 554 113 . Legs . | . . . . Wheels 289 | . 26 238 25 Hover 27 | . . . 27 Flight . | . . . . Fastest Speed 50 | 50 95 95 95 Average Speed 149 | 127 167 124 141 Slowest Speed 300 | 160 240 240 300 Overloaded Moves . | . . . . Propulsion Burnouts . | . . . . Robots Hopped . | . . . . Potential Cave-ins 3 | . 3 . . Cave-ins Triggered . | . . . . Exploration Rate (%) 23 | 3 63 13 15 Regions Visited 3 Branch Regions 1 Pre-discovered Areas . | . . . . Known Exits Taken . | . . . . Unknown Exits Taken 3 | 1 1 1 . Scrap Searched . | . . . . Spaces Dug 20 | . 20 . . Terrain Destroyed 229 | . 89 135 5 Melee . | . . . . Projectile . | . . . . AOE 229 | . 89 135 5 Terrain Rammed . | . . . . Walls Destroyed . | . . . . Machines Disabled . | . . . . Actions | -11 -10 -9 -9 --------- Run | Yrd Mat Mat Sto Total 1409 | 68 676 589 76 Wait 150 | 2 15 133 . Move 1028 | 47 579 350 52 Hop . | . . . . Pick Up 50 | 7 19 20 4 Fast Attach . | . . . . Attach 23 | 7 5 11 . Detach . | . . . . Swap 24 | . 8 12 4 Drop 13 | . 6 5 2 Fire 105 | 5 43 56 1 Melee . | . . . . Ram 13 | . . . 13 Kick . | . . . . Crush 3 | . 1 2 . Escape Stasis . | . . . . Rewire . | . . . . Trap . | . . . . Miscellaneous . | . . . . Route ------- -11/Scrapyard -10/Materials (discovered 3 exits: *Mat / [*Min x2]) -9/Materials -9/Storage History --------- Turn | Location | Event 6 | -11/Scrapyard | Discovered new exit (range 15) 91 | -11/Scrapyard | Entered Materials 315 | -10/Materials | Build established: Mutant 346 | -10/Materials | Discovered new exit (range 14) 742 | -10/Materials | Discovered new exit (range 16) 817 | -10/Materials | Discovered new exit (range 16) 1211 | -10/Materials | Entered another Materials area 1211 | -9/Materials | Evolved 2 slots: Utility x2 1387 | -9/Materials | Repaired Imp. Ion Engine 1416 | -9/Materials | Repaired Wheel 1445 | -9/Materials | Repaired Heat Sink 1474 | -9/Materials | Repaired Wheel 1486 | -9/Materials | Discovered new exit (range 16) 1669 | -9/Materials | Repaired Hrd. Light Armor Plating 1883 | -9/Materials | Build established: Scavenger-Mutant 1964 | -9/Materials | Entered Storage 2051 | -9/Storage | Core integrity fell below 50% 2072 | -9/Storage | Core integrity fell below 20% 2086 | -9/Storage | Destroyed by G-34 Mercenary with Small Laser Last Messages --------------- Slammed into G-34 Mercenary. Grenade Launcher destroyed. Lgt. Armor Plating destroyed. Slammed into G-34 Mercenary. Imp. Hover Unit broken. Destabilizing: Short circuit. K-01 Serf collects debris. Broken Imp. Hover Unit destroyed. K-01 Serf collects debris. Imp. Hover Unit destroyed. K-01 Serf collects debris. Slammed into G-34 Mercenary. Imp. Ion Engine destroyed. Slammed into G-34 Mercenary. Mni. Grenade Launcher destroyed. Slammed into G-34 Mercenary. Destabilizing: System interference. Heat Sink temporarily disabled. Heat Sink destroyed. Slammed into G-34 Mercenary. Map ----- +----------------------------------------------------+ | | | | | | | | | | | | | | | | | | | | | | | | | | | ???????????????????????????????????????????? | | ???????????????????????????????????????????? | | ???????????????????????????????????????????? | | ?????####??????????????????????????????????? | | ?????#"""????????########??????????????????? | | ??####"T"######+## #??????????????????? | | #^ ## #??????????????????? | | # ## #??????????????????? | | !## #??#####???????????? | | T ^ = ## #??# #???????????? | | ## #??# #???????????? | | ## % = ##+##/###### #???????????? | | == a gg @g #???????????? | | == #####g###### #???????????? | | #??# ???# #???????????? | | #??#] ?# #???????????? | | #"T"#### #??#= ## #???????????? | | #"""???# #??# ## #???????????? | | ?####???# ?/ = ## #???????????? | | ##?????????# ##+#### = [ ## #???????????? | | ???????????# #? ??######### #???????????? | | ???????????# #?? =?????????# #???????????? | | ???????????# #??? #????????# #???????????? | | ???????????# #??? #????????# #???????????? | | ???????????# #?????????????# +???????????? | | ???????????# ??????????????? #???????????? | | ????????????+??????????????? #???????????? | | ???????????? ??????????????? ????????????? | | ???????????????????????????????????????????? | | ???????????????????????????????????????????? | | ???????????????????????????????????????????? | | ???????????????????????????????????????????? | | ???????????????????????????????????????????? | | ???????????????????????????????????????????? | | ???????????????????????????????????????????? | | ???????????????????????????????????????????? | | ???????????????????????????????????????????? | +----------------------------------------------------+ Best States ------------- Heat Dissipation 38 Energy Generation 12 Energy Capacity 265 Matter Stores 300 Matter Capacity 300 Sight Range 16 Terrain Scan Range 16 Terrain Scan Density 10 Armor Coverage 300 Propulsion Shielding 33 Evasion (%) 50 Recoil Reduction 2 Item Schematics ----------------- None Robot Schematics ------------------ None Fabricated ------------ Nothing Repaired ---------- Imp. Ion Engine | 45% | -9/Materials Wheel | 12% | -9/Materials Heat Sink | 6% | -9/Materials Wheel | 50% | -9/Materials Hrd. Light Armor Plating | 10% | -9/Materials Alien Tech Used ----------------- None Achievements -------------- Remodeling Challenges ------------ None Game ------ Seed CobblerThermicShredder Manual? 0 Play Time 00:29:41 Cumulative 4.0 hours Start 2025.08.21 @ 23:49:15 End 2025.08.22 @ 00:18:36 Sessions 1 Manual Loads 0 Difficulty Rogue Special Mode None Game No. 9 Rogue 9 Adventurer 0 Explorer 0 Win Type - Total 0 Types 0/0/0/0/0/0/0/0/0/0 Lore% 1 Gallery% 8 Achievement% 8 Wizard Run 0 Options --------- Layout 1 ASCII 0 Keyboard 0 Movement Arrows Keybinds 0 Fullscreen 1 Font 24/Smallcaps Map View 50x35 Zoom Use 0% Tactical HUD 0 Map Filters NONE Filters NONE Steam 1 RUN: 91a1baa2-8741-4e19-91e5-3ab65d90ecf1